Cogmind - Beta 10.2 @@@ ROGUE MODE // 2021.11.12 @ 12:28:31 Player: Gengar Result: Destroyed by S-27 Virus with Autogun Performance ------------- Evolutions (3) 1500 Regions Visited (6) 1200 Robots Destroyed (25) 125 Value Destroyed (903) 903 Prototype IDs (4) 80 Alien Tech Used (0) 0 Bonus (0) 0 TOTAL SCORE: 3808 Bonus ------- None Cogmind --------- Core Integrity 0/700 Matter 300/300 Energy 98/100 System Corruption 7% Temperature Cool (0) Movement Core (50) Location -7/Factory Parts ------- > --- POWER (1) -------- (None) > --- PROPULSION (2) --- (None) > --- UTILITY (7) ------ (None) > --- WEAPON (3) ------- (None) > --- INVENTORY (4) ---- Improved Medium Armor Plating Gauss Rifle Assault Cannon Rocket Launcher Peak State ------------ > --- POWER ------------ Light Nuclear Core > --- PROPULSION ------- Light Treads Advanced Treads > --- UTILITY ---------- Improved Heat Sink Coolant Injector Small Storage Unit Advanced Signal Interpreter Reactive Plating > --- WEAPON ----------- Lightning Gun Improved Medium Laser Gatling Laser > --- INVENTORY -------- Light Nuclear Core Improved Medium Laser Heavy Assault Rifle Improved Assault Rifle Assault Cannon Rocket Launcher [Rating: 33] Favorites ----------- Power Light Nuclear Core Engine Light Ion Engine Power Core Light Nuclear Core Propulsion Wheel Treads Advanced Treads Wheel Wheel Utility Small Storage Unit Device Improved Heat Sink Storage Small Storage Unit Processor Advanced Signal Interpreter Protection Hardened Light Armor Plating Weapon Heavy Assault Rifle Energy Gun Improved Medium Laser Energy Cannon Heavy Particle Cannon Ballistic Gun Heavy Assault Rifle Build | -11 -10 -9 -8 -7 -7 -7 ------- Run | Scr Mat Mat Mat Fac Was Fac Slots Evolved 6 | . . 2 2 2 . . Power . | . . . . . . . Propulsion . | . . . . . . . Utility 5 | . . 1 2 2 . . Weapon 1 | . . 1 . . . . Parts Attached 42 | 6 4 9 17 5 1 . Power 4 | 1 . 1 1 . 1 . Engine 1 | 1 . . . . . . Core 3 | . . 1 1 . 1 . Reactor . | . . . . . . . Propulsion 7 | 2 . 2 2 1 . . Treads 3 | . . . 2 1 . . Leg . | . . . . . . . Wheel 4 | 2 . 2 . . . . Hover . | . . . . . . . Flight . | . . . . . . . Utility 12 | 1 1 4 5 1 . . Device 3 | . . . 2 1 . . Storage 1 | 1 . . . . . . Processor 2 | . . . 2 . . . Hackware . | . . . . . . . Protection 6 | . 1 4 1 . . . Artifact . | . . . . . . . Weapon 19 | 2 3 2 9 3 . . Energy Gun 10 | 1 . . 6 3 . . Energy Cannon 2 | . . . 2 . . . Ballistic Gun 7 | 1 3 2 1 . . . Ballistic Cannon . | . . . . . . . Launcher . | . . . . . . . Special Weapon . | . . . . . . . Impact Weapon . | . . . . . . . Slashing Weapon . | . . . . . . . Piercing Weapon . | . . . . . . . Special Melee Weapon . | . . . . . . . Unidentified Prototypes 2 | . . . 2 . . . Parts Lost 17 | . 1 3 8 . 5 . Power 2 | . . . 1 . 1 . Propulsion 3 | . 1 1 1 . . . Utility 6 | . . 1 3 . 2 . Weapon 6 | . . 1 3 . 2 . Highest Loss Streak 4 | . 1 1 4 . 4 . Average Slot Usage (%) 83 | . 95 90 86 81 52 . Engine 3 | . 14 5 . . . . Core 6 | . . 5 8 7 4 . Treads 6 | . . . 11 15 6 . Wheel 9 | . 25 14 6 . . . Device 6 | . . . 9 12 10 . Storage 9 | . 14 11 9 7 4 . Processor 3 | . . . 4 7 6 . Protection 12 | . 11 21 9 7 2 . Energy Gun 8 | . 2 . 13 14 15 . Energy Cannon 3 | . . . 7 4 . . Ballistic Gun 14 | . 25 31 6 3 . . Naked Turns 99 | . . . . . 18 81 Heaviest Build 33 | 10 18 27 32 33 32 . Greatest Support 42 | 20 20 20 42 42 42 3 Greatest Overweight (x) 8 | . 1 8 2 . 6 . Average Overweight (x) . | . . 1 . . . . Largest Inventory Capacity 6 | 6 6 6 6 6 6 4 Average Capacity 5 | 5 6 6 6 6 5 4 Most Carried 6 | 2 6 5 6 6 6 4 Average Carried 4 | 1 4 3 4 5 4 3 Final Capacity 6 | 6 6 6 6 6 4 4 Final Carried 6 | 2 5 5 6 6 4 4 Class Distribution -------------------- 67% | Tank 19% | Mutant 13% | Gunner Dominant Class ---------------- Mutant | -10/Materials Tank | -9/Materials Tank | -8/Materials Tank | -7/Factory Mutant | -7/Waste Mutant | -7/Factory Resources | -11 -10 -9 -8 -7 -7 -7 ----------- Run | Scr Mat Mat Mat Fac Was Fac Matter Collected 1094 | 200 136 414 271 24 . 49 Remotely . | . . . . . . . Salvage Created 1068 | . 174 404 409 81 . . Parts 66 | . 10 26 27 3 . . Haulers Intercepted . | . . . . . . . Recyclers Shooed . | . . . . . . . Parts Field Recycled . | . . . . . . . Retrieved Matter . | . . . . . . . Parts Self-Destructed . | . . . . . . . Prevented . | . . . . . . . Kills | -11 -10 -9 -8 -7 -7 -7 ------- Run | Scr Mat Mat Mat Fac Was Fac Combat Hostiles Destroyed 22 | . 5 8 8 1 . . Guns 18 | . 5 8 4 1 . . Cannons 3 | . . . 3 . . . Classes Destroyed 5 | . 2 2 1 . . . Watcher 3 | . . 2 . 1 . . Swarmer 3 | . 2 . 1 . . . Grunt 11 | . 3 5 2 1 . . Sentry 7 | . . 3 4 . . . Hunter 1 | . . . 1 . . . Best Kill Streak 3 | . 2 3 3 1 . . Combat Bots Only 3 | . 2 2 3 1 . . Max Kills in Single Turn 1 | . 1 1 1 1 . . Gunslinging . | . . . . . . . Exploded . | . . . . . . . Melee . | . . . . . . . Uniques/NPCs Destroyed . | . . . . . . . Combat | -11 -10 -9 -8 -7 -7 -7 -------- Run | Scr Mat Mat Mat Fac Was Fac Damage Taken 2663 | . 419 640 806 46 219 533 Core 915 | . 55 100 48 . 179 533 Absorbed by Shields . | . . . . . . . Core Remaining (%) 86 | 100 78 75 91 . . . Volleys Fired 92 | . 25 33 27 7 . . Largest 3 | . 2 3 3 3 . . Hottest 191 | . 46 69 163 191 . . Shots Fired 238 | . 50 96 71 21 . . Gun 219 | . 50 96 53 20 . . Cannon 19 | . . . 18 1 . . Launcher . | . . . . . . . Special . | . . . . . . . Kinetic 167 | . 50 96 20 1 . . Thermal 42 | . . . 28 14 . . Explosive . | . . . . . . . Electromagnetic 29 | . . . 23 6 . . Robot Hit Streak 17 | . 7 17 11 11 . . Robot Miss Streak 5 | . 3 5 3 3 . . Penetration Max . | . . . . . . . Secondary Targets 1 | . 1 . . . . . Max Gunslinging Chain 1 | . 1 . . . . . Shots Hit Robots 154 | . 29 60 52 13 . . Core Hits 44 | . 7 15 16 6 . . Critical Hits 2 | . . 1 1 . . . Critical Kills 1 | . . 1 . . . . Critical Parts Destroyed 1 | . . . 1 . . . Melee Attacks . | . . . . . . . Impact . | . . . . . . . Slashing . | . . . . . . . Piercing . | . . . . . . . Sneak Attacks . | . . . . . . . Combat Hostiles . | . . . . . . . Follow-up Attacks . | . . . . . . . Damage Inflicted 2277 | . 384 714 905 274 . . Guns 1978 | . 384 714 606 274 . . Cannons 248 | . . . 248 . . . Explosions 51 | . . . 51 . . . Melee . | . . . . . . . Ramming . | . . . . . . . Kinetic 1297 | . 384 714 185 14 . . Thermal 550 | . . . 414 136 . . Explosive . | . . . . . . . Electromagnetic 430 | . . . 306 124 . . Impact . | . . . . . . . Slashing . | . . . . . . . Piercing . | . . . . . . . Highest Corruption 7 | . . 1 . . 7 7 Average Corruption 2 | . . 1 . . 7 7 Corruption Purged . | . . . . . . . Effects 6 | . . 1 . . 3 2 Message Errors 1 | . . . . . . 1 Matter Fused 1 | . . . . . 1 . Heat Flow Errors 1 | . . . . . 1 . Energy Discharges 1 | . . . . . 1 . Data Loss (minor) 1 | . . . . . . 1 Targeting Errors 1 | . . 1 . . . . Overload Shots . | . . . . . . . Overflow Damage . | . . . . . . . Projectiles . | . . . . . . . Explosions . | . . . . . . . Melee . | . . . . . . . Knockbacks . | . . . . . . . Impact . | . . . . . . . Kinetic . | . . . . . . . Secondary . | . . . . . . . Self-Inflicted Damage 37 | . . . 37 . . . Shots 1 | . . . 1 . . . Rammed . | . . . . . . . Targets Rammed . | . . . . . . . Kicked . | . . . . . . . Crushed . | . . . . . . . Highest Temperature 415 | . 120 415 359 196 118 . Average Temperature 109 | . 47 128 115 97 77 . Received Heat Transfer 669 | . 189 255 189 27 . 9 Effects 4 | . . 2 2 . . . Interference 2 | . . . 2 . . . Matter Decay 1 | . . 1 . . . . Damage (minor) 1 | . . 1 . . . . Siege Activations . | . . . . . . . Robots Corrupted 1 | . . . 1 . . . Combat Hostiles 1 | . . . 1 . . . Parts Fried 6 | . . . 4 2 . . Impact Corruptions . | . . . . . . . Robots Melted . | . . . . . . . Combat Hostiles . | . . . . . . . Parts Melted . | . . . . . . . Heat Transferred 1077 | . . . 779 298 . . Parts Sabotaged . | . . . . . . . Parts Stolen . | . . . . . . . Parts Stripped . | . . . . . . . Power Chain Reactions 1 | . . . 1 . . . Missiles Intercepted . | . . . . . . . Alert | -11 -10 -9 -8 -7 -7 -7 ------- Run | Scr Mat Mat Mat Fac Was Fac Peak Influence 210 | . 170 210 166 92 32 63 Initial 84 | . . 71 84 20 32 3 Average 85 | . 79 132 90 36 19 9 Maximum Alert Level 1 | . . 1 . . . . Low Security (%) 97 | 100 100 92 100 100 100 100 Level 1 2 | . . 7 . . . . Level 2 . | . . . . . . . Level 3 . | . . . . . . . Level 4 . | . . . . . . . Level 5 . | . . . . . . . High Security . | . . . . . . . Max Security . | . . . . . . . Squads Dispatched 5 | . 1 1 2 1 . . Investigation 1 | . . . 1 . . . Extermination . | . . . . . . . Reinforcement 4 | . 1 1 1 1 . . Assault . | . . . . . . . Garrison . | . . . . . . . Intercept . | . . . . . . . Construction Impeded . | . . . . . . . Haulers Reinforced . | . . . . . . . Stealth | -11 -10 -9 -8 -7 -7 -7 --------- Run | Scr Mat Mat Mat Fac Was Fac Distress Signals 2 | . . 2 . . . . Communications Jammed . | . . . . . . . Distress Signals . | . . . . . . . Times Spotted 55 | . 9 14 14 3 6 9 Peak Tracking Total 8 | . 4 3 5 1 6 8 Tactical Retreats 7 | . 1 4 . . . 2 Traps | -11 -10 -9 -8 -7 -7 -7 ------- Run | Scr Mat Mat Mat Fac Was Fac Traps Triggered 7 | . . 4 1 1 . 1 Indirectly . | . . . . . . . Trap Hack Attempts . | . . . . . . . Triggered . | . . . . . . . Disarmed . | . . . . . . . Reprogrammed . | . . . . . . . Reused . | . . . . . . . Traps Extracted . | . . . . . . . Installed . | . . . . . . . Triggered . | . . . . . . . Machines | -11 -10 -9 -8 -7 -7 -7 ---------- Run | Scr Mat Mat Mat Fac Was Fac Machines Disabled 2 | . 1 . . 1 . . Max in Single Turn 1 | . 1 . . 1 . . Machines Sabotaged . | . . . . . . . Garrisons Compromised . | . . . . . . . Overloaded Fab Kills . | . . . . . . . Fab Network Shutdowns . | . . . . . . . Hacking | -11 -10 -9 -8 -7 -7 -7 --------- Run | Scr Mat Mat Mat Fac Was Fac Machines Accessed 4 | . . 2 1 . . 1 Terminals 3 | . . 2 1 . . . Fabricators . | . . . . . . . Repair Stations . | . . . . . . . Recycling Units 1 | . . . . . . 1 Scanalyzers . | . . . . . . . Garrison Access . | . . . . . . . Total Hacks 5 | . . 3 1 . . 1 Successful 5 | . . 3 1 . . 1 Failed . | . . . . . . . Catastrophic . | . . . . . . . Database Lockouts . | . . . . . . . Manual . | . . . . . . . Terminals 4 | . . 3 1 . . . Fabricators . | . . . . . . . Repair Stations . | . . . . . . . Recycling Units 1 | . . . . . . 1 Scanalyzers . | . . . . . . . Garrison Access . | . . . . . . . Terminal Hacks 4 | . . 3 1 . . . Prototype ID Bank 1 | . . 1 . . . . Alert Level 2 | . . 1 1 . . . Investigation Status 1 | . . 1 . . . . Fabricator Hacks . | . . . . . . . Repair Station Hacks . | . . . . . . . Recycling Unit Hacks 1 | . . . . . . 1 Report Inventory 1 | . . . . . . 1 Scanalyzer . | . . . . . . . Garrison Access Hacks . | . . . . . . . Unauthorized Hacks . | . . . . . . . Terminals . | . . . . . . . Fabricators . | . . . . . . . Repair Stations . | . . . . . . . Recycling Units . | . . . . . . . Scanalyzers . | . . . . . . . Garrison Access . | . . . . . . . Data Cores Recovered . | . . . . . . . Used . | . . . . . . . Hacking Detections 1 | . . 1 . . . . Full Trace Events . | . . . . . . . Feedback Events . | . . . . . . . Feedback Blocked . | . . . . . . . Robot Schematics Acquired . | . . . . . . . Robots Built . | . . . . . . . Matter . | . . . . . . . Time . | . . . . . . . Total Robot Build Rating . | . . . . . . . Part Schematics Acquired . | . . . . . . . Parts Built . | . . . . . . . Matter . | . . . . . . . Time . | . . . . . . . Total Part Build Rating . | . . . . . . . Parts Repaired . | . . . . . . . Time . | . . . . . . . Parts Recycled . | . . . . . . . Recycled Matter . | . . . . . . . Retrieved Matter . | . . . . . . . Retrieved Components . | . . . . . . . Parts Scanalyzed . | . . . . . . . Part Schematics Acquired . | . . . . . . . Parts Damaged . | . . . . . . . Bothacking | -11 -10 -9 -8 -7 -7 -7 ------------ Run | Scr Mat Mat Mat Fac Was Fac Used RIF Installer . | . . . . . . . Robots Hacked . | . . . . . . . Non-combat . | . . . . . . . Combat . | . . . . . . . Robot Hacks Applied . | . . . . . . . Relay Couplers Released . | . . . . . . . Robots Rewired . | . . . . . . . Allies Hacked . | . . . . . . . Hacks Repelled . | . . . . . . . Allies | -11 -10 -9 -8 -7 -7 -7 -------- Run | Scr Mat Mat Mat Fac Was Fac Total Allies . | . . . . . . . Largest Group . | . . . . . . . Highest-Rated Group . | . . . . . . . Highest-Rated Ally . | . . . . . . . Total Orders . | . . . . . . . Ally Attacks . | . . . . . . . Total Damage . | . . . . . . . Kills . | . . . . . . . Allies Corrupted . | . . . . . . . Allies Melted . | . . . . . . . Intel | -11 -10 -9 -8 -7 -7 -7 ------- Run | Scr Mat Mat Mat Fac Was Fac Robot Analysis Total . | . . . . . . . Derelict Logs Recovered . | . . . . . . . Drone Launches . | . . . . . . . Drone Recoveries . | . . . . . . . Exploration | -11 -10 -9 -8 -7 -7 -7 ------------- Run | Scr Mat Mat Mat Fac Was Fac Turns Passed 2308 | 55 194 673 871 326 108 81 Spaces Moved 1374 | 49 122 377 369 185 114 158 Core 267 | 1 . 35 . . 73 158 Treads 539 | . . . 313 185 41 . Legs . | . . . . . . . Wheels 568 | 48 122 342 56 . . . Hover . | . . . . . . . Flight . | . . . . . . . Fastest Speed 50 | 50 80 90 90 152 50 50 Average Speed 117 | 79 82 125 144 152 94 50 Slowest Speed 450 | 80 90 450 165 152 350 50 Overloaded Moves . | . . . . . . . Propulsion Burnouts . | . . . . . . . Robots Hopped . | . . . . . . . Cave-ins Triggered . | . . . . . . . Exploration Rate (%) 34 | 3 43 50 36 8 96 7 Regions Visited 6 Branch Regions . Pre-discovered Areas . | . . . . . . . Known Exits Taken 1 | . . . 1 . . . Unknown Exits Taken 3 | 1 1 1 . . . . Scrap Searched . | . . . . . . . Spaces Dug . | . . . . . . . Terrain Destroyed 9 | . . . 9 . . . Melee . | . . . . . . . Projectile 6 | . . . 6 . . . AOE 3 | . . . 3 . . . Terrain Rammed . | . . . . . . . Walls Destroyed . | . . . . . . . Machines Disabled . | . . . . . . . Actions | -11 -10 -9 -8 -7 -7 -7 --------- Run | Scr Mat Mat Mat Fac Was Fac Total 1868 | 61 165 501 650 215 114 162 Wait 321 | 5 8 74 223 11 . . Move 1369 | 48 121 376 368 185 113 158 Hop . | . . . . . . . Pick Up 26 | 2 4 7 8 3 . 2 Fast Attach 19 | 6 2 3 7 1 . . Attach 15 | . 1 6 7 . 1 . Detach 1 | . . . 1 . . . Swap 8 | . 1 . 3 4 . . Drop 17 | . 3 2 6 4 . 2 Fire 92 | . 25 33 27 7 . . Melee . | . . . . . . . Ram . | . . . . . . . Kick . | . . . . . . . Crush . | . . . . . . . Escape Stasis . | . . . . . . . Rewire . | . . . . . . . Trap . | . . . . . . . Miscellaneous . | . . . . . . . Route ------- -11/Scrapyard -10/Materials (discovered 2 exits: *Mat / [*Min]) -9/Materials (discovered 2 exits: *Mat / [*Min]) -8/Materials -7/Factory -7/Waste -7/Factory History --------- Turn | Location | Event 12 | -11/Scrapyard | Discovered new exit (range 16) 56 | -11/Scrapyard | Entered Materials 178 | -10/Materials | Discovered new exit (range 13) 243 | -10/Materials | Discovered new exit (range 5) 250 | -10/Materials | Entered another Materials area 250 | -9/Materials | Evolved 2 slots: Utility x1, Weapon x1 526 | -9/Materials | Discovered new exit (range 13) 555 | -9/Materials | Build established: Tank 851 | -9/Materials | Discovered new exit (range 14) 923 | -9/Materials | Entered another Materials area 923 | -8/Materials | Evolved 2 slots: Utility x2 1178 | -8/Materials | Lost 4 parts (1p1n1u1w) 1324 | -8/Materials | Lost 3 parts (1u2w) 1704 | -8/Materials | Discovered new exit (range 5) 1793 | -8/Materials | Identified exit to Factory 1794 | -8/Materials | Entered Factory 1794 | -7/Factory | Evolved 2 slots: Utility x2 2120 | -7/Factory | Sucked down chute 2120 | -7/Factory | Entered Waste 2135 | -7/Waste | EMP discharged 2145 | -7/Waste | Spotted C-40 Crusher 2145 | -7/Waste | Spotted C-40 Crusher 2152 | -7/Waste | Crushed by Compactor (1 part destroyed, 2 dropped) 2180 | -7/Waste | Spotted C-40 Crusher 2188 | -7/Waste | Crushed by Compactor (1 part destroyed, 1 dropped) 2189 | -7/Waste | Spotted C-40 Crusher 2191 | -7/Waste | Crushed by Compactor (1 part destroyed, 2 dropped) 2191 | -7/Waste | Crushed by Compactor (1 part destroyed, 2 dropped) 2198 | -7/Waste | Spotted C-40 Crusher 2203 | -7/Waste | Spotted C-40 Crusher 2210 | -7/Waste | Crushed by Compactor (1 part destroyed) 2224 | -7/Waste | Discovered new exit (range 10) 2228 | -7/Waste | Entered Factory 2241 | -7/Factory | Lost 4 parts (1p1u2w) 2267 | -7/Factory | Core integrity fell below 50% 2278 | -7/Factory | Core integrity fell below 20% 2309 | -7/Factory | Destroyed by S-27 Virus with Autogun Last Messages --------------- 02224_ EXIT=FOUND 02225_ ALERT: Foreign system detected. Charging EMP. LOCATION=UNKNOWN GOAL=ESCAPE 02235_ Dropped Imp. Assault Rifle. 02235_ Acquired Gauss Rifle. 02237_ Connecting with Recycling Unit... 02237_ Current location identified: Factory >>Recycling(Report) Matter reserves: 0 Inventory: Imp. Titanium Leg (26%) 02253_ Acquired 49 matter. 02253_ Dropped Imp. Medium Laser. 02254_ Acquired Imp. Medium Armor Plating. 02258_ System corrupted: Component data lost. 02279_ K-01 Serf collects debris. 02294_ 6KE/K:FIBQLHMX<|7HVM%F8EMEUJPPX 02296_ Triggered Blade Trap. 02296_ Massive razor-sharp blades shoot up from within the floor. Map ----- +----------------------------------------------------+ | """ ""??????????????????? | | """?????????????????? | | "T" """ ""??????????????? | | ??????????????? | | """?????????????????? | | ?################### """?????????????????? | | ??????????#######??# """?????????????????? | | ??????????? [ ?# ?????????????? | | ???????????? ?# """ """ ""??????????????? | | ???????????? """" # """ """?????????????????? | | ???????????? """" # """ [ """ ""??????????????? | | ???????????? """" + ?????????????? | | ???????????? """" # ?????????????? | | ??????????? # ###????????????????? | | ?????############### # ?????????????????? | | ?????# + ?????????????? | | ?????# ###### """??????????????? | | ?????# #???????????????????????? | | ?????# #???????????????????????? | | ?????# #???????????????????????? | | ?????# ###+#######+#######???????????????????? | | ?????# ?# s s #???????????????????? | | ?????# ????# #???????????????????? | | ???????????# """ """ """ #???????????????????? | | ???????????# """ """ """ #???????????????????? | | ???????????# """ """ """ @= #???????????????????? | | ???????????# == #???????????????????? | | ???????????# ] #???????????????????? | | ???????????###################???????????????????? | | ?????????????????????????????????????????????????? | | ?????????????????????????????????????????????????? | | ?????????????????????????????????????????????????? | | ?????????????????????????????????????????????????? | | ?????????????????????????????????????????????????? | | ?????????????????????????????????????????????????? | | ?????????????????????????????????????????????????? | | ?????????????????????????????????????????????????? | | ?????????????????????????????????????????????????? | | ?????????????????????????????????????????????????? | | ?????????????????????????????????????????????????? | | ?????????????????????????????????????????????????? | | ?????????????????????????????????????????????????? | | ?????????????????????????????????????????????????? | | ?????????????????????????????????????????????????? | | ?????????????????????????????????????????????????? | | ?????????????????????????????????????????????????? | | ?????????????????????????????????????????????????? | | ?????????????????????????????????????????????????? | | ?????????????????????????????????????????????????? | | ?????????????????????????????????????????????????? | +----------------------------------------------------+ Best States ------------- Heat Dissipation 48 Coolant Potential 65 Energy Generation 14 Energy Capacity 160 Matter Stores 300 Matter Capacity 300 Sight Range 16 Terrain Scan Density 10 Armor Coverage 300 Resistance: KI 20 Evasion (%) 50 Recoil Reduction 2 Particle Charging 15 Item Schematics ----------------- None Robot Schematics ------------------ None Fabricated ------------ Nothing Alien Tech Used ----------------- None Achievements -------------- None Challenges ------------ None Game ------ Seed GaussThunderRail Manual? 0 Play Time 00:51:18 Cumulative 31.4 hours Start 2021.03.01 @ 21:08:20 End 2021.11.12 @ 12:28:31 Sessions 2 Manual Loads 0 Difficulty Rogue Special Mode None Game No. 24 Rogue 24 Adventurer 0 Explorer 0 Win Type - Total 0 Types 0/0/0/0/0/0/0/0/0 Lore% 29 Gallery% 28 Achievement% 17 Wizard Run 0 Options --------- ASCII 0 Keyboard 0 Movement Mouse Keybinds 0 Fullscreen 0 Font 20/SmallcapsGlow Map View 76x50 Tactical HUD 1 Map Filters NONE Filters NONE Steam 1 RUN: f6509505-0c54-4603-a877-0c91339cb527